fUST/lending_fUST_20240829
["ID","MTS","AMOUNT","RATE_DAILY","PERIOD"]
[336538950,1724927447050,-500.0,0.00019452,2]
[336538951,1724927447059,-500.0,0.00019452,2]
[336538952,1724927447068,-500.0,0.00019452,2]
[336538953,1724927447078,-500.0,0.00019452,2]
[336538954,1724927447087,-500.0,0.00019452,2]
[336538955,1724927447098,-500.0,0.00019452,2]
[336538956,1724927447108,-2106.38,0.00019452,2]
[336538957,1724927447119,-500.0,0.00019452,2]
[336538958,1724927447129,-500.0,0.00019452,2]
[336538959,1724927447140,-500.0,0.00019452,2]
[336538960,1724927447152,-10071.84,0.00019452,2]
[336538961,1724927447164,-500.0,0.00019452,2]
[336538962,1724927447175,-500.0,0.00019452,2]
[336538963,1724927447185,-500.0,0.00019452,2]
[336538964,1724927447194,-1018.5,0.00019452,2]
[336538965,1724927447206,-500.0,0.00019452,2]
[336538966,1724927447217,-1289.28,0.00019452,2]
[336538967,1724927447228,-552.58,0.00019452,2]
[336538968,1724927447240,-500.0,0.00019452,2]
[336538969,1724927447252,-500.0,0.00019452,2]
[336538970,1724927447264,-500.0,0.00019452,2]
[336538971,1724927447274,-709.55,0.00019452,2]
[336538972,1724927447284,-222.9774822,0.00019452,2]
[336538973,1724927447295,-500.0,0.00019452,2]
[336538974,1724927447304,-500.0,0.00019452,2]
[336538975,1724927447315,-500.0,0.00019452,2]
[336538976,1724927447325,-500.0,0.00019452,2]
[336538977,1724927447336,-500.0,0.00019452,2]
[336538978,1724927447345,-6360.27,0.00019452,2]
[336538979,1724927447355,-500.0,0.00019452,2]
[336538980,1724927447365,-500.0,0.00019452,2]
[336538981,1724927447375,-500.0,0.00019452,2]
[336538982,1724927447386,-500.0,0.00019452,2]
[336538983,1724927447397,-500.0,0.00019452,2]
[336538984,1724927447408,-500.0,0.00019452,2]
[336538985,1724927447419,-500.0,0.00019452,2]
[336538986,1724927447430,-541.58,0.00019452,2]
[336538987,1724927447439,-500.0,0.00019452,2]
[336538988,1724927447454,-687.46,0.00019452,2]
[336538990,1724927447465,-500.0,0.00019452,2]
[336538991,1724927447476,-500.0,0.00019452,2]
[336538992,1724927447486,-151.0,0.00019452,2]
[336538993,1724927447501,-995.21,0.00019452,2]
[336538994,1724927447511,-1620.61,0.00019452,2]
[336538995,1724927447520,-500.0,0.00019452,2]
[336538996,1724927447530,-500.0,0.00019452,2]
[336538997,1724927447539,-500.0,0.00019452,2]
[336538998,1724927447549,-500.0,0.00019452,2]
[336538999,1724927447560,-630.92,0.00019452,2]
[336539000,1724927447569,-500.0,0.00019452,2]
[336539001,1724927447580,-500.0,0.00019452,2]
[336539002,1724927447590,-203.47208,0.00019452,2]
[336539003,1724927447600,-203.47208,0.00019452,2]
[336539004,1724927447610,-500.0,0.00019452,2]
[336539005,1724927447620,-500.0,0.00019452,2]
[336539006,1724927447629,-1355.85,0.00019452,2]
[336539007,1724927447639,-500.0,0.00019452,2]
[336539008,1724927447649,-558.52,0.00019452,2]
[336539009,1724927447658,-500.0,0.00019452,2]
[336539010,1724927447668,-503.75046036,0.00019452,2]
[336539011,1724927447678,-3317.67,0.00019452,2]
[336539012,1724927447688,-500.0,0.00019452,2]
[336539013,1724927447698,-500.0,0.00019452,2]
[336539014,1724927447707,-500.0,0.00019452,2]
[336539015,1724927447716,-19305.46,0.00019452,2]
[336539016,1724927447726,-500.0,0.00019452,2]
[336539017,1724927447736,-500.0,0.00019452,2]
[336539018,1724927447745,-610.71,0.00019452,2]
[336539019,1724927447754,-500.0,0.00019452,2]
[336539020,1724927447767,-500.0,0.00019452,2]
[336539021,1724927447776,-500.0,0.00019452,2]
[336539022,1724927447786,-500.0,0.00019452,2]
[336539023,1724927447795,-500.0,0.00019452,2]
[336539024,1724927447805,-701.11,0.00019452,2]
[336539025,1724927447816,-500.0,0.00019452,2]
[336539026,1724927447825,-765.65,0.00019452,2]
[336539027,1724927447834,-500.0,0.00019452,2]
[336539028,1724927447845,-500.0,0.00019452,2]
[336539029,1724927447855,-500.0,0.00019452,2]
[336539030,1724927447864,-500.0,0.00019452,2]
[336539031,1724927447874,-500.0,0.00019452,2]
[336539032,1724927447883,-503.26765471,0.00019452,2]
[336539033,1724927447893,-500.0,0.00019452,2]
[336539034,1724927447903,-1857.93,0.00019452,2]
[336539035,1724927447913,-1388.84,0.00019452,2]
[336539036,1724927447922,-500.0,0.00019452,2]
[336539037,1724927447932,-624.06,0.00019452,2]
[336539038,1724927447941,-500.0,0.00019452,2]
[336539039,1724927447951,-1779.16,0.00019452,2]
[336539040,1724927447960,-1493.61,0.00019452,2]
[336539041,1724927447970,-500.0,0.00019452,2]
[336539042,1724927447979,-551.99576952,0.00019452,2]
[336539043,1724927447989,-396.39121838,0.00019452,2]
[336539044,1724927448000,-500.0,0.00019473,2]
[336539045,1724927448010,-734.1,0.00019479,2]
[336539046,1724927448019,-150.112233,0.000195,2]
[336539047,1724927448030,-150.112233,0.000196,2]
[336539048,1724927448040,-203.47208,0.000196,2]
[336539049,1724927448050,-203.47208,0.000196,2]
[336539050,1724927448059,-5722.25415541,0.00019607,2]
[336539051,1724927448074,-1252.70974322,0.00019626,2]
[336539052,1724927448084,-151.0,0.0001965,2]
[336539053,1724927448094,-450.0,0.000197,30]
[336539054,1724927448104,-800.0,0.000197,30]
[336539055,1724927448115,-150.112233,0.000197,2]
[336539056,1724927448125,-150.112233,0.000197,2]
[336539057,1724927448135,-59879.6567093,0.00019706,2]
[336539058,1724927448146,-734.1,0.00019715,2]
[336539059,1724927448156,-734.1,0.00019715,2]
[336539060,1724927448165,-203.47208,0.00019716,2]
[336539061,1724927448176,-203.47208,0.00019716,2]
[336539062,1724927448186,-734.1,0.00019725,2]
[336539063,1724927448197,-734.1,0.00019725,2]
[336539064,1724927448206,-734.1,0.00019725,2]
[336539065,1724927448216,-500.0,0.00019725,2]
[336539066,1724927448226,-500.0,0.00019726,2]
[336539067,1724927448237,-500.0,0.00019726,2]
[336539068,1724927448246,-273.057814,0.00019726,2]
[336539069,1724927448257,-489.00111737,0.00019726,2]
[336539070,1724927448268,-500.0,0.00019726,2]
[336539071,1724927448279,-234.91586171,0.00019726,2]
[336539072,1724927448290,-500.0,0.00019726,2]
[336539073,1724927448301,-506.16719343,0.00019726,2]
[336539074,1724927448311,-500.0,0.00019726,2]
[336539075,1724927448321,-500.0,0.00019726,2]
[336539076,1724927448332,-544.27799395,0.00019726,2]
[336539077,1724927448344,-500.0,0.00019726,2]
[336539078,1724927448355,-500.0,0.00019726,2]
[336539079,1724927448366,-500.0,0.00019726,2]
[336539080,1724927448376,-500.0,0.00019726,2]
[336539081,1724927448386,-500.0,0.00019726,2]
[336539082,1724927448397,-440.32233481,0.00019726,2]
[336539083,1724927448407,-500.0,0.00019726,2]
[336539084,1724927448418,-500.0,0.00019726,2]
[336539085,1724927448427,-500.0,0.00019726,2]
[336539086,1724927448439,-500.0,0.00019726,2]
[336539087,1724927448449,-500.0,0.00019726,2]
[336539088,1724927448458,-500.0,0.00019726,2]
[336539089,1724927448467,-500.0,0.00019726,2]
[336539090,1724927448476,-319.54821701,0.00019726,2]
[336539091,1724927448487,-500.0,0.00019726,2]
[336539092,1724927448497,-500.0,0.00019726,2]
[336539093,1724927448507,-500.0,0.00019726,2]
[336539094,1724927448517,-4037.19,0.00019726,2]
[336539095,1724927448526,-500.0,0.00019726,2]
[336539096,1724927448536,-529.79,0.00019726,2]
[336539097,1724927448545,-500.0,0.00019726,2]
[336539098,1724927448554,-500.0,0.00019726,2]
[336539099,1724927448565,-500.0,0.00019726,2]
[336539100,1724927448575,-500.0,0.00019726,2]
[336539101,1724927448585,-151.0,0.00019726,2]
[336539102,1724927448596,-500.0,0.00019726,2]
[336539103,1724927448605,-640.83131968,0.00019726,2]
[336539104,1724927448615,-500.0,0.00019726,2]
[336539105,1724927448626,-2106.38,0.00019726,2]
[336539106,1724927448636,-500.0,0.00019726,2]
[336539107,1724927448645,-500.0,0.00019726,2]
[336539108,1724927448655,-500.0,0.00019726,2]
[336539109,1724927448665,-10071.84,0.00019726,2]
[336539110,1724927448674,-500.0,0.00019726,2]
[336539111,1724927448683,-500.0,0.00019726,2]
[336539112,1724927448694,-461.56767406,0.00019726,2]
[336539113,1724927448703,-1018.5,0.00019726,2]
[336539114,1724927448713,-500.0,0.00019726,2]
[336539115,1724927448722,-1289.28,0.00019726,2]
[336539116,1724927448732,-552.58,0.00019726,2]
[336539117,1724927448742,-500.0,0.00019726,2]
[336539118,1724927448752,-500.0,0.00019726,2]
[336539119,1724927448766,-500.0,0.00019726,2]
[336539120,1724927448776,-709.55,0.00019726,2]
[336539121,1724927448786,-500.0,0.00019726,2]
[336539122,1724927448795,-500.0,0.00019726,2]
[336539123,1724927448805,-500.0,0.00019726,2]
[336539124,1724927448815,-500.0,0.00019726,2]
[336539125,1724927448825,-371.73149348,0.00019726,2]
[336539126,1724927448836,-6360.27,0.00019726,2]
[336539127,1724927449028,-500.0,0.00019726,2]
[336539128,1724927449038,-500.0,0.00019726,2]
[336539129,1724927449048,-500.0,0.00019726,2]
[336539130,1724927449059,-500.0,0.00019726,2]
[336539131,1724927449069,-500.0,0.00019726,2]
[336539132,1724927449078,-500.0,0.00019726,2]
[336539133,1724927449088,-500.0,0.00019726,2]
[336539134,1724927449098,-541.58,0.00019726,2]
[336539135,1724927449109,-500.0,0.00019726,2]
[336539136,1724927449119,-687.46,0.00019726,2]
[336539137,1724927449129,-500.0,0.00019726,2]
[336539138,1724927449140,-500.0,0.00019726,2]
[336539139,1724927449150,-995.21,0.00019726,2]
[336539140,1724927449160,-1620.61,0.00019726,2]
[336539141,1724927449169,-500.0,0.00019726,2]
[336539142,1724927449179,-500.0,0.00019726,2]
[336539143,1724927449191,-500.0,0.00019726,2]
[336539144,1724927449200,-500.0,0.00019726,2]
[336539145,1724927449210,-630.92,0.00019726,2]
[336539146,1724927449220,-500.0,0.00019726,2]
[336539147,1724927449231,-588.27247141,0.00019726,2]
[336539148,1724927449242,-203.47208,0.00019726,2]
[336539149,1724927449252,-500.0,0.00019726,2]
[336539150,1724927449262,-1355.85,0.00019726,2]
[336539151,1724927449271,-500.0,0.00019726,2]
[336539152,1724927449281,-203.47208,0.00019726,2]
[336539153,1724927449291,-500.0,0.00019726,2]
[336539154,1724927449301,-558.52,0.00019726,2]
[336539155,1724927449311,-500.0,0.00019726,2]
[336539156,1724927449321,-3317.67,0.00019726,2]
[336539157,1724927449331,-500.0,0.00019726,2]
[336539158,1724927449341,-500.0,0.00019726,2]
[336539159,1724927449351,-500.0,0.00019726,2]
[336539160,1724927449360,-19305.46,0.00019726,2]
[336539161,1724927449372,-266.69885878,0.00019726,2]
[336539162,1724927449382,-607.71010208,0.00019726,2]
[336539163,1724927449393,-610.71,0.00019726,2]
[336539164,1724927449403,-500.0,0.00019726,2]
[336539165,1724927449413,-504.04199811,0.00019726,2]
[336539166,1724927449424,-500.0,0.00019726,2]
[336539167,1724927449435,-500.0,0.00019726,2]
[336539168,1724927449446,-500.0,0.00019726,2]
[336539169,1724927449458,-701.11,0.00019726,2]
[336539170,1724927449467,-288.26017064,0.00019726,2]
[336539171,1724927449477,-765.65,0.00019726,2]
[336539172,1724927449487,-500.0,0.00019726,2]
[336539173,1724927449498,-500.0,0.00019726,2]
[336539174,1724927449509,-500.0,0.00019726,2]
[336539175,1724927449518,-500.0,0.00019726,2]
[336539176,1724927449527,-500.0,0.00019726,2]
[336539177,1724927449536,-505.4603177,0.00019726,2]
[336539178,1724927449545,-1857.93,0.00019726,2]
[336539179,1724927449555,-1388.84,0.00019726,2]
[336539180,1724927449565,-500.0,0.00019726,2]
[336539181,1724927449575,-624.06,0.00019726,2]
[336539182,1724927449585,-1779.16,0.00019726,2]
[336539183,1724927449596,-1493.61,0.00019726,2]
[336539184,1724927449607,-500.0,0.00019726,2]
[336539185,1724927449617,-734.1,0.00019789,2]
[336539186,1724927449627,-3455.4,0.000198,2]
[336539187,1724927449638,-5290.35,0.000198,2]
[336539188,1724927449648,-3788.85,0.000198,2]
[336539189,1724927449660,-153.820309,0.000198,2]
[336539190,1724927449671,-11900.90004231,0.000198,2]
[336539191,1724927449681,-150.112233,0.000198,2]
[336539192,1724927449691,-150.112233,0.000198,2]
[336539193,1724927449702,-203.47208,0.000198,2]
[336539194,1724927449712,-203.47208,0.000198,2]
[336539195,1724927449722,-150.112233,0.000198,2]
[336539196,1724927449731,-150.112233,0.000198,2]
[336539197,1724927449740,-150.112233,0.000199,2]
[336539198,1724927449750,-150.112233,0.000199,2]
[336539199,1724927449761,-156.58342821,0.000199,2]
[336539200,1724927449775,-156.58342821,0.000199,2]
[336539201,1724927449788,-156.58342821,0.000199,2]
[336539202,1724927449798,-156.58342821,0.000199,2]
[336539203,1724927449808,-156.58342821,0.000199,2]
[336539204,1724927449817,-156.58342821,0.000199,2]
[336539205,1724927449827,-156.58342821,0.000199,2]
[336539206,1724927449837,-156.58342821,0.000199,2]
[336539207,1724927449848,-156.58342821,0.000199,2]
[336539208,1724927449859,-156.58342821,0.000199,2]
[336539209,1724927449869,-156.58342821,0.000199,2]
[336539210,1724927449880,-150.112233,0.000199,2]
[336539211,1724927449890,-156.58342821,0.000199,2]
[336539212,1724927449900,-156.58342821,0.000199,2]
[336539213,1724927449910,-156.58342821,0.000199,2]
[336539214,1724927449921,-157.08,0.000199,2]
[336539215,1724927449931,-734.1,0.0001998,2]
[336539216,1724927449941,-734.1,0.0001998,2]
[336539217,1724927449953,-203.47208,0.0001999,2]
[336539218,1724927449964,-203.47208,0.0001999,2]
[336539219,1724927449974,-734.1,0.00019999,2]
[336539220,1724927449984,-734.1,0.00019999,2]
[336539221,1724927449994,-734.1,0.00019999,2]
[336539222,1724927450003,-734.1,0.00019999,2]
[336539223,1724927450014,-734.1,0.00019999,2]
[336539224,1724927450029,-734.1,0.00019999,2]
[336539225,1724927450043,-734.33345067,0.00019999,2]
[336539226,1724927450056,-34686.82062097,0.0002,2]
[336539232,1724927559808,-200.0,0.0002,30]
[336539278,1724928425143,-241.08245312,0.00014247,2]
[336539279,1724928441137,-54.61701788,0.00014247,2]
[336539280,1724928441163,-174.9797707,0.00018102,2]
[336539281,1724928441189,-1.66312423,0.00018201,2]
[336539328,1724928638772,-7593.49477293,0.00018201,2]
[336539329,1724928638782,-213.108703,0.00018904,2]
[336539330,1724928638791,-9992.662924,0.00019,2]
[336539331,1724928638802,-528.41005242,0.00019042,2]
[336539332,1724928638813,-410.78422407,0.00019068,2]
[336539333,1724928638824,-410.78422406,0.00019071,2]
[336539334,1724928638833,-410.78422406,0.00019073,2]
[336539335,1724928638843,-410.78422406,0.00019076,2]
[336539336,1724928638854,-300.0,0.00019076,2]
[336539337,1724928638866,-410.78422406,0.00019078,2]
[336539338,1724928638875,-300.665033,0.000191,8]
[336539340,1724928638885,-159.49,0.00019158,3]
[336539341,1724928638895,-478.52,0.00019158,3]
[336539342,1724928638905,-75339.7280564,0.00019167,2]
[336539343,1724928638918,-75339.7280564,0.00019168,2]
[336539344,1724928638927,-240.64886019,0.00019173,2]
[336539345,1724928638938,-177306.878628,0.00019177,2]
[336539346,1724928638947,-258.38303476,0.00019178,5]
[336539347,1724928638957,-214.61384319,0.00019178,2]
[336539348,1724928638990,-163.56340085,0.00019178,2]
[336539357,1724928643755,-121.82275596,0.00019178,2]
[336539359,1724928643768,-500.0,0.00019178,2]
[336539361,1724928643778,-500.0,0.00019178,2]
[336539362,1724928643788,-500.0,0.00019178,2]
[336539363,1724928643800,-500.0,0.00019178,2]
[336539364,1724928643810,-503.70145416,0.00019178,2]
[336539365,1724928643819,-500.0,0.00019178,2]
[336539366,1724928643828,-500.0,0.00019178,2]
[336539367,1724928643838,-500.0,0.00019178,2]
[336539368,1724928643848,-500.55449782,0.00019178,2]
[336539369,1724928643858,-500.0,0.00019178,2]
[336539370,1724928643868,-500.0,0.00019178,2]
[336539371,1724928643878,-289.97496339,0.00019178,2]
[336539372,1724928644045,-210.02503661,0.00019178,2]
[336539373,1724928644057,-620.01902514,0.00019178,2]
[336539374,1724928644071,-500.0,0.00019178,2]
[336539375,1724928644085,-500.0,0.00019178,2]
[336539376,1724928644097,-500.0,0.00019178,2]
[336539377,1724928644111,-319.95593825,0.00019178,2]
[336539396,1724928646646,-180.04406175,0.00019178,2]
[336539397,1724928646659,-500.0,0.00019178,2]
[336539398,1724928646673,-500.0,0.00019178,2]
[336539399,1724928646687,-567.13061585,0.00019178,2]
[336539400,1724928646700,-500.0,0.00019178,2]
[336539401,1724928646712,-500.0,0.00019178,2]
[336539403,1724928646726,-500.99548657,0.00019178,2]
[336539405,1724928646739,-500.71288549,0.00019178,2]
[336539406,1724928646748,-599.931842,0.00019178,2]
[336539407,1724928646760,-500.0,0.00019178,2]
[336539408,1724928646772,-500.0,0.00019178,2]
[336539409,1724928646784,-602.02655786,0.00019178,2]
[336539410,1724928646795,-500.0,0.00019178,2]
[336539411,1724928646811,-301.46784555,0.00019178,2]
[336539412,1724928646822,-500.0,0.00019178,2]
[336539413,1724928646834,-500.0,0.00019178,2]
[336539414,1724928646846,-500.0,0.00019178,2]
[336539415,1724928646860,-502.12951184,0.00019178,2]
[336539416,1724928646872,-500.0,0.00019178,2]
[336539417,1724928646884,-570.42077977,0.00019178,2]
[336539418,1724928646896,-500.0,0.00019178,2]
[336539419,1724928646909,-500.0,0.00019178,2]
[336539420,1724928646921,-500.0,0.00019178,2]
[336539421,1724928646932,-500.0,0.00019178,2]
[336539422,1724928646943,-500.0,0.00019178,2]
[336539423,1724928646954,-500.0,0.00019178,2]
[336539424,1724928646965,-500.0,0.00019178,2]
[336539425,1724928646975,-500.0,0.00019178,2]
[336539426,1724928646987,-396.41427541,0.00019178,2]
[336539427,1724928646998,-628.4955591,0.00019178,2]
[336539428,1724928647008,-500.0,0.00019178,2]
[336539429,1724928647020,-500.0,0.00019178,2]
[336539430,1724928647030,-500.0,0.00019178,2]
[336539431,1724928647041,-500.0,0.00019178,2]
[336539432,1724928647052,-500.0,0.00019178,2]
[336539433,1724928647064,-500.0,0.00019178,2]
[336539434,1724928647076,-569.15534995,0.00019178,2]
[336539435,1724928647092,-218.66332139,0.00019178,2]
[336539436,1724928647105,-500.0,0.00019178,2]
[336539437,1724928647117,-500.0,0.00019178,2]
[336539438,1724928647129,-500.0,0.00019178,2]
[336539439,1724928647142,-522.71328175,0.00019178,2]
[336539440,1724928647157,-500.0,0.00019178,2]
[336539441,1724928647173,-639.27748449,0.00019178,2]
[336539442,1724928647185,-500.0,0.00019178,2]
[336539443,1724928647196,-500.0,0.00019178,2]
[336539444,1724928647209,-507.70559027,0.00019178,2]
[336539445,1724928647222,-500.0,0.00019178,2]
[336539446,1724928647235,-500.0,0.00019178,2]
[336539447,1724928647246,-500.0,0.00019178,2]
[336539448,1724928647258,-500.0,0.00019178,2]
[336539449,1724928647269,-500.0,0.00019178,2]
[336539450,1724928647282,-500.0,0.00019178,2]
[336539451,1724928647296,-165.16431259,0.00019178,2]
[336539452,1724928647308,-500.0,0.00019178,2]
[336539453,1724928647320,-500.0,0.00019178,2]
[336539454,1724928647332,-500.0,0.00019178,2]
[336539455,1724928647344,-500.0,0.00019178,2]
[336539456,1724928647356,-500.0,0.00019178,2]
[336539457,1724928647368,-500.0,0.00019178,2]
[336539458,1724928647381,-393.75552324,0.00019178,2]
[336539459,1724928647392,-500.0,0.00019178,2]
[336539460,1724928647406,-500.0,0.00019178,2]
[336539461,1724928647419,-505.75239719,0.00019178,2]
[336539462,1724928647431,-500.0,0.00019178,2]
[336539463,1724928647443,-501.47391635,0.00019178,2]
[336539464,1724928647456,-500.0,0.00019178,2]
[336539465,1724928647469,-3784.09,0.00019178,2]
[336539466,1724928647481,-500.0,0.00019178,2]
[336539467,1724928647494,-500.0,0.00019178,2]
[336539468,1724928647505,-502.60329577,0.00019178,2]
[336539469,1724928647518,-500.0,0.00019178,2]
[336539470,1724928647530,-500.0,0.00019178,2]
[336539471,1724928647542,-500.0,0.00019178,2]
[336539472,1724928647555,-500.0,0.00019178,2]
[336539473,1724928647567,-500.0,0.00019178,2]
[336539474,1724928647578,-500.0,0.00019178,2]
[336539475,1724928647590,-156.32594776,0.00019178,2]
[336539476,1724928647604,-634.27365084,0.00019178,2]
[336539477,1724928647615,-500.0,0.00019178,2]
[336539478,1724928647626,-500.0,0.00019178,2]
[336539479,1724928647638,-500.0,0.00019178,2]
[336539480,1724928647651,-500.0,0.00019178,2]
[336539481,1724928647663,-2069.45,0.00019178,2]
[336539482,1724928647676,-500.0,0.00019178,2]
[336539483,1724928647688,-500.0,0.00019178,2]
[336539484,1724928647700,-1234.7,0.00019178,2]
[336539485,1724928647710,-179.02161752,0.00019178,2]
[336539486,1724928647720,-1676.03,0.00019178,2]
[336539487,1724928647730,-205.28146147,0.00019178,2]
[336539488,1724928647740,-500.0,0.00019178,2]
[336539489,1724928647750,-501.45164795,0.00019178,2]
[336539490,1724928647759,-500.0,0.00019178,2]
[336539491,1724928647769,-500.0,0.00019178,2]
[336539493,1724928647991,-500.0,0.00019178,2]
[336539494,1724928648008,-500.0,0.00019178,2]
[336539495,1724928648018,-500.0,0.00019178,2]
[336539496,1724928648029,-500.0,0.00019178,2]
[336539497,1724928648039,-500.0,0.00019178,2]
[336539498,1724928648050,-500.0,0.00019178,2]
[336539499,1724928648060,-500.0,0.00019178,2]
[336539500,1724928648070,-500.0,0.00019178,2]
[336539501,1724928648080,-500.0,0.00019178,2]
[336539502,1724928648089,-500.0,0.00019178,2]
[336539503,1724928648099,-500.0,0.00019178,2]
[336539504,1724928648108,-1661.97,0.00019178,2]
[336539505,1724928648120,-500.0,0.00019178,2]
[336539506,1724928648130,-500.0,0.00019178,2]
[336539507,1724928648140,-500.0,0.00019178,2]
[336539508,1724928648151,-500.0,0.00019178,2]
[336539509,1724928648163,-9887.81,0.00019178,2]
[336539510,1724928648173,-500.0,0.00019178,2]
[336539511,1724928648183,-500.0,0.00019178,2]
[336539512,1724928648195,-500.0,0.00019178,2]
[336539513,1724928648205,-6525.14,0.00019178,2]
[336539514,1724928648214,-500.0,0.00019178,2]
[336539515,1724928648223,-500.0,0.00019178,2]
[336539516,1724928648234,-500.0,0.00019178,2]
[336539517,1724928648244,-500.0,0.00019178,2]
[336539518,1724928648256,-808.87,0.00019178,2]
[336539519,1724928648266,-500.0,0.00019178,2]
[336539520,1724928648276,-545.20702973,0.00019178,2]
[336539521,1724928648285,-500.0,0.00019178,2]
[336539522,1724928648295,-500.0,0.00019178,2]
[336539523,1724928648305,-500.0,0.00019178,2]
[336539524,1724928648315,-1142.0,0.00019178,2]
[336539525,1724928648326,-500.0,0.00019178,2]
[336539526,1724928648336,-500.0,0.00019178,2]
[336539527,1724928648345,-500.0,0.00019178,2]
[336539528,1724928648355,-500.0,0.00019178,2]
[336539529,1724928648365,-500.0,0.00019178,2]
[336539530,1724928648375,-500.0,0.00019178,2]
[336539531,1724928648385,-500.0,0.00019178,2]
[336539532,1724928648395,-500.0,0.00019178,2]
[336539533,1724928648405,-500.0,0.00019178,2]
[336539534,1724928648414,-500.0,0.00019178,2]
[336539535,1724928648424,-1805.87,0.00019178,2]
[336539536,1724928648434,-500.0,0.00019178,2]
[336539537,1724928648443,-611.2,0.00019178,2]
[336539538,1724928648453,-793.65,0.00019178,2]
[336539539,1724928648462,-500.0,0.00019178,2]
[336539540,1724928648472,-500.0,0.00019178,2]
[336539541,1724928648482,-546.16,0.00019178,2]
[336539542,1724928648492,-500.0,0.00019178,2]
[336539543,1724928648501,-614.8,0.00019178,2]
[336539544,1724928648511,-500.0,0.00019178,2]
[336539545,1724928648521,-500.0,0.00019178,2]
[336539546,1724928648531,-500.0,0.00019178,2]
[336539547,1724928648540,-500.0,0.00019178,2]
[336539548,1724928648549,-1534.35,0.00019178,2]
[336539549,1724928648559,-500.0,0.00019178,2]
[336539550,1724928648568,-500.0,0.00019178,2]
[336539551,1724928648577,-500.0,0.00019178,2]
[336539552,1724928648587,-500.0,0.00019178,2]
[336539553,1724928648597,-500.0,0.00019178,2]
[336539554,1724928648606,-500.0,0.00019178,2]
[336539555,1724928648617,-500.0,0.00019178,2]
[336539556,1724928648627,-500.0,0.00019178,2]
[336539557,1724928648639,-588.73,0.00019178,2]
[336539558,1724928648648,-573.93,0.00019178,2]
[336539559,1724928648659,-500.0,0.00019178,2]
[336539560,1724928648670,-1407.0,0.00019178,2]
[336539561,1724928648681,-500.0,0.00019178,2]
[336539562,1724928648691,-500.0,0.00019178,2]
[336539563,1724928648701,-698.17,0.00019178,2]
[336539564,1724928648712,-500.0,0.00019178,2]
[336539565,1724928648721,-21239.44,0.00019178,2]
[336539566,1724928648732,-500.0,0.00019178,2]
[336539567,1724928648748,-500.0,0.00019178,2]
[336539568,1724928648758,-500.0,0.00019178,2]
[336539569,1724928648768,-500.0,0.00019178,2]
[336539570,1724928648778,-500.0,0.00019178,2]
[336539571,1724928648788,-500.0,0.00019178,2]
[336539572,1724928648798,-500.0,0.00019178,2]
[336539573,1724928648809,-500.0,0.00019178,2]
[336539574,1724928648818,-500.0,0.00019178,2]
[336539575,1724928648828,-500.0,0.00019178,2]
[336539576,1724928648837,-500.0,0.00019178,2]
[336539577,1724928648847,-500.0,0.00019178,2]
[336539578,1724928648856,-708.19,0.00019178,2]